fUST/lending_fUST_20260518
["ID","MTS","AMOUNT","RATE_DAILY","PERIOD"]
[422539369,1779042648000,-580.62,0.00011232,2]
[422539365,1779042648000,-2408.65,0.00011232,2]
[422539381,1779042648000,-500.0,0.00011232,2]
[422539405,1779042648000,-1627.57,0.00011232,2]
[422539397,1779042648000,-500.0,0.00011232,2]
[422539385,1779042648000,-4076.78,0.00011232,2]
[422539399,1779042648000,-737.15,0.00011232,2]
[422539401,1779042648000,-500.0,0.00011232,2]
[422539393,1779042648000,-500.0,0.00011232,2]
[422539389,1779042648000,-911.86,0.00011232,2]
[422539387,1779042648000,-691.85,0.00011232,2]
[422539403,1779042648000,-500.0,0.00011232,2]
[422539391,1779042648000,-500.0,0.00011232,2]
[422539395,1779042648000,-911.19,0.00011232,2]
[422539407,1779042648000,-500.0,0.00011232,2]
[422539409,1779042648000,-681.67,0.00011232,2]
[422539411,1779042648000,-500.0,0.00011232,2]
[422539345,1779042648000,-209.23328553,0.00011232,2]
[422539383,1779042648000,-500.0,0.00011232,2]
[422539353,1779042648000,-500.0,0.00011232,2]
[422539299,1779042648000,-624.01,0.00011232,2]
[422539340,1779042648000,-500.0,0.00011232,2]
[422539413,1779042648000,-4543.19,0.00011232,2]
[422539298,1779042648000,-505.03717736,0.00011232,2]
[422539294,1779042648000,-1594.9,0.00011232,2]
[422539289,1779042648000,-500.0,0.00011232,2]
[422539291,1779042648000,-500.0,0.00011232,2]
[422539295,1779042648000,-500.0,0.00011232,2]
[422539304,1779042648000,-500.0,0.00011232,2]
[422539305,1779042648000,-1409.02,0.00011232,2]
[422539301,1779042648000,-500.0,0.00011232,2]
[422539315,1779042648000,-611.12,0.00011232,2]
[422539319,1779042648000,-500.0,0.00011232,2]
[422539322,1779042648000,-538.34,0.00011232,2]
[422539320,1779042648000,-500.0,0.00011232,2]
[422539307,1779042648000,-742.74,0.00011232,2]
[422539351,1779042648000,-500.0,0.00011232,2]
[422539326,1779042648000,-2461.27,0.00011232,2]
[422539330,1779042648000,-500.0,0.00011232,2]
[422539328,1779042648000,-500.0,0.00011232,2]
[422539311,1779042648000,-500.0,0.00011232,2]
[422539309,1779042648000,-257.23022723,0.00011232,2]
[422539324,1779042648000,-1611.6,0.00011232,2]
[422539317,1779042648000,-500.0,0.00011232,2]
[422539336,1779042648000,-2361.05,0.00011232,2]
[422539343,1779042648000,-500.0,0.00011232,2]
[422539332,1779042648000,-500.0,0.00011232,2]
[422539334,1779042648000,-233.23149283,0.00011232,2]
[422539338,1779042648000,-500.0,0.00011232,2]
[422539349,1779042648000,-11440.52,0.00011232,2]
[422539355,1779042648000,-500.0,0.00011232,2]
[422539341,1779042648000,-588.89,0.00011232,2]
[422539313,1779042648000,-1025.26,0.00011232,2]
[422539415,1779042648000,-4695.27,0.00011232,2]
[422539489,1779042648000,-936.82,0.00011232,2]
[422539426,1779042648000,-1277.98,0.00011232,2]
[422539487,1779042648000,-500.0,0.00011232,2]
[422539543,1779042648000,-4568.83,0.00011232,2]
[422539491,1779042648000,-500.0,0.00011232,2]
[422539507,1779042648000,-500.0,0.00011232,2]
[422539499,1779042648000,-500.0,0.00011232,2]
[422539505,1779042648000,-500.0,0.00011232,2]
[422539497,1779042648000,-151.61445543,0.00011232,2]
[422539495,1779042648000,-502.83,0.00011232,2]
[422539493,1779042648000,-668.4,0.00011232,2]
[422539501,1779042648000,-56189.47,0.00011232,2]
[422539503,1779042648000,-681.64,0.00011232,2]
[422539509,1779042648000,-500.0,0.00011232,2]
[422539511,1779042648000,-570.73,0.00011232,2]
[422539515,1779042648000,-500.0,0.00011232,2]
[422539519,1779042648000,-10841.66,0.00011232,2]
[422539517,1779042648000,-2437.05,0.00011232,2]
[422539521,1779042648000,-500.0,0.00011232,2]
[422539527,1779042648000,-4733.27,0.00011232,2]
[422539523,1779042648000,-500.0,0.00011232,2]
[422539525,1779042648000,-500.0,0.00011232,2]
[422539538,1779042648000,-500.0,0.00011232,2]
[422539534,1779042648000,-500.0,0.00011232,2]
[422539533,1779042648000,-500.0,0.00011232,2]
[422539531,1779042648000,-500.0,0.00011232,2]
[422539529,1779042648000,-500.0,0.00011232,2]
[422539536,1779042648000,-500.0,0.00011232,2]
[422539540,1779042648000,-2186.05,0.00011232,2]
[422539541,1779042648000,-879.53,0.00011232,2]
[422539417,1779042648000,-500.0,0.00011232,2]
[422539474,1779042648000,-1486.43,0.00011232,2]
[422539470,1779042648000,-1633.7,0.00011232,2]
[422539513,1779042648000,-500.0,0.00011232,2]
[422539485,1779042648000,-8388.86,0.00011232,2]
[422539419,1779042648000,-500.0,0.00011232,2]
[422539481,1779042648000,-3750.4,0.00011232,2]
[422539421,1779042648000,-500.0,0.00011232,2]
[422539424,1779042648000,-500.0,0.00011232,2]
[422539433,1779042648000,-500.0,0.00011232,2]
[422539427,1779042648000,-500.0,0.00011232,2]
[422539435,1779042648000,-500.0,0.00011232,2]
[422539431,1779042648000,-625.17,0.00011232,2]
[422539430,1779042648000,-500.0,0.00011232,2]
[422539437,1779042648000,-790.34,0.00011232,2]
[422539443,1779042648000,-737.6,0.00011232,2]
[422539441,1779042648000,-3902.84,0.00011232,2]
[422539450,1779042648000,-2887.65,0.00011232,2]
[422539448,1779042648000,-500.0,0.00011232,2]
[422539444,1779042648000,-7873.3,0.00011232,2]
[422539439,1779042648000,-4006.28,0.00011232,2]
[422539483,1779042648000,-782.44,0.00011232,2]
[422539472,1779042648000,-500.0,0.00011232,2]
[422539446,1779042648000,-3649.76,0.00011232,2]
[422539468,1779042648000,-171.75435626,0.00011232,2]
[422539477,1779042648000,-500.0,0.00011232,2]
[422539475,1779042648000,-500.0,0.00011232,2]
[422539466,1779042648000,-9064.24,0.00011232,2]
[422539462,1779042648000,-500.0,0.00011232,2]
[422539479,1779042648000,-3176.51,0.00011232,2]
[422539458,1779042648000,-500.0,0.00011232,2]
[422539456,1779042648000,-500.0,0.00011232,2]
[422539452,1779042648000,-1115.05,0.00011232,2]
[422539464,1779042648000,-4046.15,0.00011232,2]
[422539454,1779042648000,-3336.81,0.00011232,2]
[422539460,1779042648000,-1107.27,0.00011232,2]
[422539647,1779042649000,-1238.7,0.00011232,2]
[422539643,1779042649000,-554.87491951,0.00011232,2]
[422539637,1779042649000,-500.0,0.00011232,2]
[422539633,1779042649000,-336.509833,0.00011232,2]
[422539625,1779042649000,-336.509833,0.00011232,2]
[422539629,1779042649000,-500.0,0.00011232,2]
[422539605,1779042649000,-3083.97,0.00011232,2]
[422539623,1779042649000,-500.0,0.00011232,2]
[422539645,1779042649000,-500.0,0.00011232,2]
[422539602,1779042649000,-511.95,0.00011232,2]
[422539617,1779042649000,-3485.28,0.00011232,2]
[422539604,1779042649000,-2178.56,0.00011232,2]
[422539635,1779042649000,-502.34,0.00011232,2]
[422539631,1779042649000,-500.0,0.00011232,2]
[422539639,1779042649000,-336.509833,0.00011232,2]
[422539669,1779042649000,-800.0,0.00011273,2]
[422539652,1779042649000,-359.20501377,0.00011232,7]
[422539651,1779042649000,-308.68572473,0.00011232,7]
[422539654,1779042649000,-348.16488436,0.00011232,7]
[422539663,1779042649000,-6637.28551986,0.00011252,2]
[422539649,1779042649000,-500.0,0.00011232,2]
[422539665,1779042649000,-800.0,0.00011255,2]
[422539658,1779042649000,-1555.0,0.00011233,2]
[422539656,1779042649000,-3372.74,0.00011233,2]
[422539660,1779042649000,-800.0,0.00011234,2]
[422539662,1779042649000,-800.0,0.00011238,2]
[422539672,1779042649000,-1478.375747,0.00011276,2]
[422539671,1779042649000,-160.0,0.00011276,2]
[422539667,1779042649000,-800.0,0.00011269,2]
[422539621,1779042649000,-336.509833,0.00011232,2]
[422539641,1779042649000,-500.0,0.00011232,2]
[422539596,1779042649000,-500.0,0.00011232,2]
[422539556,1779042649000,-500.0,0.00011232,2]
[422539619,1779042649000,-500.0,0.00011232,2]
[422539554,1779042649000,-718.13,0.00011232,2]
[422539544,1779042649000,-500.0,0.00011232,2]
[422539560,1779042649000,-1109.0,0.00011232,2]
[422539562,1779042649000,-500.0,0.00011232,2]
[422539558,1779042649000,-500.0,0.00011232,2]
[422539552,1779042649000,-500.0,0.00011232,2]
[422539550,1779042649000,-500.0,0.00011232,2]
[422539546,1779042649000,-151.0,0.00011232,2]
[422539564,1779042649000,-500.0,0.00011232,2]
[422539548,1779042649000,-500.0,0.00011232,2]
[422539566,1779042649000,-151.0,0.00011232,2]
[422539575,1779042649000,-2867.35,0.00011232,2]
[422539584,1779042649000,-703.92,0.00011232,2]
[422539577,1779042649000,-500.0,0.00011232,2]
[422539567,1779042649000,-151.0,0.00011232,2]
[422539582,1779042649000,-791.96,0.00011232,2]
[422539588,1779042649000,-9066.96,0.00011232,2]
[422539600,1779042649000,-500.0,0.00011232,2]
[422539609,1779042649000,-677.5,0.00011232,2]
[422539615,1779042649000,-500.0,0.00011232,2]
[422539598,1779042649000,-3348.68,0.00011232,2]
[422539607,1779042649000,-507.16622169,0.00011232,2]
[422539613,1779042649000,-500.0,0.00011232,2]
[422539611,1779042649000,-500.0,0.00011232,2]
[422539594,1779042649000,-500.0,0.00011232,2]
[422539590,1779042649000,-500.0,0.00011232,2]
[422539592,1779042649000,-8276.04,0.00011232,2]
[422539580,1779042649000,-1345.58,0.00011232,2]
[422539586,1779042649000,-883.1,0.00011232,2]
[422539572,1779042649000,-2096.56,0.00011232,2]
[422539574,1779042649000,-1682.09,0.00011232,2]
[422539570,1779042649000,-500.0,0.00011232,2]
[422539674,1779042649000,-2796.751495,0.00011276,2]
[422539677,1779042649000,-1008.36081672,0.00011276,2]
[422539693,1779042649000,-5000.0,0.0001131,2]
[422539745,1779042649000,-664.0899,0.00011506,2]
[422539736,1779042649000,-500.0,0.00011506,2]
[422539747,1779042649000,-500.0,0.00011506,2]
[422539759,1779042649000,-786.73,0.00011506,2]
[422539763,1779042649000,-500.0,0.00011506,2]
[422539770,1779042649000,-669.19,0.00011506,2]
[422539764,1779042649000,-500.0,0.00011506,2]
[422539766,1779042649000,-509.00440027,0.00011506,2]
[422539761,1779042649000,-500.0,0.00011506,2]
[422539772,1779042649000,-500.0,0.00011506,2]
[422539757,1779042649000,-500.0,0.00011506,2]
[422539755,1779042649000,-500.0,0.00011506,2]
[422539768,1779042649000,-630.84,0.00011506,2]
[422539773,1779042649000,-500.0,0.00011506,2]
[422539735,1779042649000,-800.0,0.00011493,2]
[422539775,1779042649000,-500.0,0.00011506,2]
[422539753,1779042649000,-522.79751571,0.00011506,2]
[422539779,1779042649000,-500.0,0.00011506,2]
[422539781,1779042649000,-500.0,0.00011506,2]
[422539784,1779042649000,-500.0,0.00011506,2]
[422539783,1779042649000,-500.0,0.00011506,2]
[422539794,1779042649000,-757.77,0.00011506,2]
[422539792,1779042649000,-500.0,0.00011506,2]
[422539777,1779042649000,-500.0,0.00011506,2]
[422539786,1779042649000,-500.0,0.00011506,2]
[422539790,1779042649000,-500.0,0.00011506,2]
[422539788,1779042649000,-502.7486546,0.00011506,2]
[422539685,1779042649000,-800.0,0.00011306,2]
[422539796,1779042649000,-500.0,0.00011506,2]
[422539800,1779042649000,-500.0,0.00011506,2]
[422539751,1779042649000,-500.0,0.00011506,2]
[422539749,1779042649000,-500.0,0.00011506,2]
[422539798,1779042649000,-500.0,0.00011506,2]
[422539729,1779042649000,-800.0,0.00011385,2]
[422539731,1779042649000,-10069.83738753,0.00011406,2]
[422539680,1779042649000,-800.0,0.00011285,2]
[422539691,1779042649000,-5000.0,0.0001131,2]
[422539689,1779042649000,-5000.0,0.0001131,2]
[422539687,1779042649000,-800.0,0.00011307,2]
[422539683,1779042649000,-5000.0,0.0001129,15]
[422539697,1779042649000,-5000.0,0.0001131,2]
[422539701,1779042649000,-160.0,0.00011332,2]
[422539695,1779042649000,-5000.0,0.0001131,2]
[422539699,1779042649000,-800.0,0.00011326,2]
[422539711,1779042649000,-800.0,0.00011353,2]
[422539714,1779042649000,-800.0,0.00011362,2]
[422539718,1779042649000,-800.0,0.00011367,2]
[422539728,1779042649000,-800.0,0.00011377,2]
[422539707,1779042649000,-800.0,0.00011348,2]
[422539679,1779042649000,-800.0,0.00011284,2]
[422539715,1779042649000,-800.0,0.00011362,2]
[422539709,1779042649000,-770.90298788,0.00011348,2]
[422539734,1779042649000,-1612.78553468,0.00011454,25]
[422539730,1779042649000,-410.56721993,0.00011401,2]
[422539732,1779042649000,-800.0,0.00011424,2]
[422539740,1779042649000,-596.1632,0.00011506,2]
[422539742,1779042649000,-1617.0287,0.00011506,2]
[422539744,1779042649000,-3429.3122,0.00011506,2]
[422539722,1779042649000,-343.0,0.00011376,2]
[422539703,1779042649000,-1729.854548,0.00011332,2]
[422539738,1779042649000,-1448.4715,0.00011506,2]
[422539720,1779042649000,-800.0,0.00011369,2]
[422539733,1779042649000,-1093.33919546,0.00011446,7]
[422539726,1779042649000,-5121.0,0.00011376,2]
[422539705,1779042649000,-3299.709097,0.00011332,2]
[422539724,1779042649000,-163.0,0.00011376,2]
[422539884,1779042650000,-500.0,0.00011506,2]
[422539894,1779042650000,-500.0,0.00011506,2]
[422539886,1779042650000,-500.0,0.00011506,2]
[422539888,1779042650000,-500.0,0.00011506,2]
[422539876,1779042650000,-500.0,0.00011506,2]
[422539890,1779042650000,-1486.37,0.00011506,2]
[422539878,1779042650000,-779.43,0.00011506,2]
[422539882,1779042650000,-500.0,0.00011506,2]
[422539880,1779042650000,-504.991378,0.00011506,2]
[422539892,1779042650000,-1115.76,0.00011506,2]
[422539898,1779042650000,-500.0,0.00011506,2]
[422539896,1779042650000,-452.30758363,0.00011506,2]
[422539874,1779042650000,-500.0,0.00011506,2]
[422539906,1779042650000,-721.64,0.00011506,2]
[422539900,1779042650000,-704.38,0.00011506,2]
[422539917,1779042650000,-500.0,0.00011506,2]
[422539915,1779042650000,-500.0,0.00011506,2]
[422539902,1779042650000,-2556.3,0.00011506,2]
[422539919,1779042650000,-500.0,0.00011506,2]
[422539910,1779042650000,-500.0,0.00011506,2]
[422539923,1779042650000,-815.97,0.00011506,2]
[422539904,1779042650000,-926.37,0.00011506,2]
[422539921,1779042650000,-603.13,0.00011506,2]
[422539908,1779042650000,-500.0,0.00011506,2]
[422539925,1779042650000,-500.0,0.00011506,2]
[422539927,1779042650000,-500.0,0.00011506,2]
[422539872,1779042650000,-500.0,0.00011506,2]
[422539912,1779042650000,-2130.5,0.00011506,2]
[422539866,1779042650000,-574.89,0.00011506,2]
[422539826,1779042650000,-650.32,0.00011506,2]
[422539870,1779042650000,-619.27,0.00011506,2]
[422539937,1779042650000,-500.0,0.00011506,2]
[422539802,1779042650000,-500.0,0.00011506,2]
[422539804,1779042650000,-807.15,0.00011506,2]
[422539806,1779042650000,-620.68,0.00011506,2]
[422539808,1779042650000,-662.91,0.00011506,2]
[422539816,1779042650000,-500.0,0.00011506,2]
[422539812,1779042650000,-500.0,0.00011506,2]
[422539819,1779042650000,-1557.13,0.00011506,2]
[422539817,1779042650000,-396.27914098,0.00011506,2]
[422539810,1779042650000,-561.49,0.00011506,2]
[422539814,1779042650000,-525.84,0.00011506,2]
[422539822,1779042650000,-500.0,0.00011506,2]
[422539823,1779042650000,-928.72,0.00011506,2]
[422539864,1779042650000,-550.31,0.00011506,2]
[422539830,1779042650000,-500.0,0.00011506,2]
[422539843,1779042650000,-1880.54,0.00011506,2]
[422539853,1779042650000,-500.0,0.00011506,2]
[422539839,1779042650000,-500.0,0.00011506,2]
[422539849,1779042650000,-500.0,0.00011506,2]
[422539845,1779042650000,-500.0,0.00011506,2]
[422539851,1779042650000,-500.0,0.00011506,2]
[422539832,1779042650000,-500.0,0.00011506,2]
[422539834,1779042650000,-500.0,0.00011506,2]
[422539847,1779042650000,-500.0,0.00011506,2]
[422539836,1779042650000,-500.0,0.00011506,2]
[422539837,1779042650000,-500.0,0.00011506,2]
[422539841,1779042650000,-500.0,0.00011506,2]
[422539868,1779042650000,-500.0,0.00011506,2]
[422539828,1779042650000,-500.0,0.00011506,2]
[422539939,1779042650000,-573.83,0.00011506,2]
[422540045,1779042650000,-500.0,0.00011506,2]
[422539935,1779042650000,-593.13,0.00011506,2]
[422539993,1779042650000,-500.0,0.00011506,2]
[422540004,1779042650000,-500.0,0.00011506,2]
[422539999,1779042650000,-3648.92,0.00011506,2]
[422539997,1779042650000,-849.12,0.00011506,2]
[422540021,1779042650000,-500.0,0.00011506,2]
[422540019,1779042650000,-694.7,0.00011506,2]
[422540017,1779042650000,-500.0,0.00011506,2]
[422540022,1779042650000,-582.29,0.00011506,2]
[422540006,1779042650000,-500.0,0.00011506,2]
[422540024,1779042650000,-500.0,0.00011506,2]
[422540008,1779042650000,-2535.9,0.00011506,2]
[422540026,1779042650000,-500.0,0.00011506,2]
[422540010,1779042650000,-1931.9,0.00011506,2]
[422540028,1779042650000,-2867.48,0.00011506,2]
[422540013,1779042650000,-1348.42,0.00011506,2]
[422540015,1779042650000,-500.0,0.00011506,2]
[422540032,1779042650000,-619.86,0.00011506,2]
[422540030,1779042650000,-500.0,0.00011506,2]
[422540047,1779042650000,-500.0,0.00011506,2]
[422540036,1779042650000,-500.0,0.00011506,2]
[422540043,1779042650000,-500.0,0.00011506,2]
[422540038,1779042650000,-500.0,0.00011506,2]
[422540039,1779042650000,-500.0,0.00011506,2]
[422540041,1779042650000,-526.02,0.00011506,2]
[422540050,1779042650000,-500.0,0.00011506,2]
[422540048,1779042650000,-731.57,0.00011506,2]
[422539942,1779042650000,-500.0,0.00011506,2]
[422539995,1779042650000,-196.24211431,0.00011506,2]
[422540002,1779042650000,-500.0,0.00011506,2]
[422540034,1779042650000,-500.0,0.00011506,2]
[422540000,1779042650000,-500.0,0.00011506,2]
[422539991,1779042650000,-1725.2,0.00011506,2]
[422539931,1779042650000,-332.19385565,0.00011506,2]
[422539929,1779042650000,-610.0,0.00011506,2]
[422539933,1779042650000,-500.0,0.00011506,2]
[422539944,1779042650000,-500.0,0.00011506,2]
[422539948,1779042650000,-562.01281853,0.00011506,2]
[422539950,1779042650000,-541.47,0.00011506,2]
[422539952,1779042650000,-500.0,0.00011506,2]
[422539954,1779042650000,-500.0,0.00011506,2]
[422539964,1779042650000,-500.0,0.00011506,2]
[422539966,1779042650000,-500.0,0.00011506,2]
[422539956,1779042650000,-500.0,0.00011506,2]
[422539967,1779042650000,-558.47815531,0.00011506,2]
[422539958,1779042650000,-500.0,0.00011506,2]
[422539946,1779042650000,-752.52,0.00011506,2]
[422539960,1779042650000,-500.0,0.00011506,2]
[422539962,1779042650000,-500.0,0.00011506,2]
[422539989,1779042650000,-500.0,0.00011506,2]
[422539986,1779042650000,-677.63,0.00011506,2]
[422539984,1779042650000,-1007.19,0.00011506,2]
[422539982,1779042650000,-500.0,0.00011506,2]
[422539980,1779042650000,-593.61,0.00011506,2]
[422539987,1779042650000,-500.0,0.00011506,2]
[422539975,1779042650000,-610.6,0.00011506,2]
[422539977,1779042650000,-500.0,0.00011506,2]
[422539973,1779042650000,-500.0,0.00011506,2]
[422539969,1779042650000,-500.0,0.00011506,2]
[422539971,1779042650000,-500.0,0.00011506,2]
[422539978,1779042650000,-914.46,0.00011506,2]
[422540096,1779042651000,-580.48,0.00011506,2]
[422540107,1779042651000,-1102.21443025,0.00011506,2]
[422540101,1779042651000,-500.0,0.00011506,2]
[422540143,1779042651000,-327.66556975,0.00011506,2]
[422540149,1779042651000,-2608.85,0.00011506,2]
[422540147,1779042651000,-500.0,0.00011506,2]
[422540151,1779042651000,-731.59,0.00011506,2]
[422540145,1779042651000,-742.35,0.00011506,2]
[422540165,1779042651000,-500.0,0.00011506,2]
[422540153,1779042651000,-500.0,0.00011506,2]
[422540155,1779042651000,-500.0,0.00011506,2]
[422540157,1779042651000,-501.88873921,0.00011506,2]
[422540163,1779042651000,-712.83,0.00011506,2]
[422540169,1779042651000,-500.0,0.00011506,2]
[422540159,1779042651000,-2225.31,0.00011506,2]
[422540176,1779042651000,-1070.91,0.00011506,2]
[422540175,1779042651000,-500.0,0.00011506,2]
[422540171,1779042651000,-500.0,0.00011506,2]
[422540105,1779042651000,-701.94,0.00011506,2]
[422540173,1779042651000,-807.24,0.00011506,2]
[422540161,1779042651000,-1000.0,0.00011506,2]
[422540087,1779042651000,-500.0,0.00011506,2]
[422540076,1779042651000,-500.0,0.00011506,2]
[422540090,1779042651000,-960.56,0.00011506,2]
[422540167,1779042651000,-500.0,0.00011506,2]
[422540054,1779042651000,-649.39,0.00011506,2]
[422540052,1779042651000,-714.18,0.00011506,2]
[422540056,1779042651000,-500.0,0.00011506,2]
[422540058,1779042651000,-437.86235014,0.00011506,2]
[422540062,1779042651000,-500.0,0.00011506,2]
[422540066,1779042651000,-500.0,0.00011506,2]
[422540083,1779042651000,-500.0,0.00011506,2]
[422540074,1779042651000,-5397.15,0.00011506,2]
[422540070,1779042651000,-761.95,0.00011506,2]
[422540072,1779042651000,-1070.98,0.00011506,2]
[422540080,1779042651000,-500.0,0.00011506,2]
[422540078,1779042651000,-505.84817574,0.00011506,2]
[422540081,1779042651000,-689.52,0.00011506,2]
[422540068,1779042651000,-500.0,0.00011506,2]
[422540060,1779042651000,-1363.65,0.00011506,2]
[422540064,1779042651000,-777.64,0.00011506,2]
[422540089,1779042651000,-500.0,0.00011506,2]
[422540098,1779042651000,-962.93,0.00011506,2]
[422540103,1779042651000,-582.86,0.00011506,2]
[422540092,1779042651000,-500.0,0.00011506,2]
[422540085,1779042651000,-5475.47,0.00011506,2]
[422540178,1779042651000,-854.41,0.00011506,2]
[422540094,1779042651000,-733.32,0.00011506,2]
[422540190,1779042651000,-2089.41,0.00011506,2]
[422540230,1779042651000,-500.0,0.00011506,2]
[422540225,1779042651000,-500.0,0.00011506,2]
[422540243,1779042651000,-500.0,0.00011506,2]
[422540239,1779042651000,-500.0,0.00011506,2]
[422540245,1779042651000,-1972.71290476,0.00011506,2]
[422540233,1779042651000,-739.92,0.00011506,2]
[422540232,1779042651000,-500.0,0.00011506,2]
[422540235,1779042651000,-500.0,0.00011506,2]
[422540237,1779042651000,-632.93,0.00011506,2]
[422540228,1779042651000,-758.31,0.00011506,2]
[422540241,1779042651000,-2194.81,0.00011506,2]
[422540247,1779042651000,-364.71709524,0.00011506,2]
[422540249,1779042651000,-500.0,0.00011506,2]
[422540263,1779042651000,-704.36031626,0.00011506,2]
[422540252,1779042651000,-500.0,0.00011506,2]
[422540251,1779042651000,-357.76473865,0.00011506,2]
[422540262,1779042651000,-621.77,0.00011506,2]
[422540254,1779042651000,-721.78,0.00011506,2]
[422540256,1779042651000,-500.0,0.00011506,2]
[422540258,1779042651000,-669.32,0.00011506,2]
[422540180,1779042651000,-500.0,0.00011506,2]
[422540207,1779042651000,-1574.37,0.00011506,2]
[422540204,1779042651000,-500.0,0.00011506,2]
[422540226,1779042651000,-644.07718316,0.00011506,2]
[422540223,1779042651000,-520.18,0.00011506,2]
[422540189,1779042651000,-500.0,0.00011506,2]
[422540188,1779042651000,-500.0,0.00011506,2]
[422540203,1779042651000,-500.0,0.00011506,2]
[422540182,1779042651000,-528.31,0.00011506,2]
[422540184,1779042651000,-799.06,0.00011506,2]
[422540187,1779042651000,-500.0,0.00011506,2]
[422540192,1779042651000,-924.14,0.00011506,2]
[422540193,1779042651000,-692.42,0.00011506,2]
[422540195,1779042651000,-500.0,0.00011506,2]
[422540186,1779042651000,-838.62,0.00011506,2]
[422540197,1779042651000,-500.0,0.00011506,2]
[422540185,1779042651000,-500.0,0.00011506,2]
[422540209,1779042651000,-963.64,0.00011506,2]
[422540220,1779042651000,-5051.23,0.00011506,2]
[422540199,1779042651000,-676.75,0.00011506,2]
[422540221,1779042651000,-500.0,0.00011506,2]
[422540218,1779042651000,-3012.69,0.00011506,2]
[422540216,1779042651000,-500.0,0.00011506,2]
[422540260,1779042651000,-574.6,0.00011506,2]
[422540201,1779042651000,-673.73,0.00011506,2]
[422540214,1779042651000,-500.0,0.00011506,2]
[422540211,1779042651000,-1140.32,0.00011506,2]
[422540213,1779042651000,-500.0,0.00011506,2]
[422540323,1779042652000,-608.56,0.00011506,2]
[422540314,1779042652000,-542.72,0.00011506,2]
[422540319,1779042652000,-500.0,0.00011506,2]
[422540315,1779042652000,-500.0,0.00011506,2]
[422540322,1779042652000,-500.0,0.00011506,2]
[422540318,1779042652000,-500.0,0.00011506,2]
[422540321,1779042652000,-500.0,0.00011506,2]
[422540313,1779042652000,-686.11,0.00011506,2]
[422540300,1779042652000,-4450.26,0.00011232,2]
[422540309,1779042652000,-660.68,0.00011506,2]
[422540304,1779042652000,-500.0,0.00011506,2]
[422540302,1779042652000,-500.0,0.00011506,2]
[422540301,1779042652000,-4289.09968374,0.00011506,2]
[422540297,1779042652000,-500.0,0.00011232,2]
[422540307,1779042652000,-500.0,0.00011506,2]
[422540294,1779042652000,-152.0,0.00010313,7]
[422540317,1779042652000,-500.0,0.00011506,2]
[422540311,1779042652000,-500.0,0.00011506,2]
[422540316,1779042652000,-260.55331766,0.00011506,2]
[422540320,1779042652000,-500.0,0.00011506,2]
[422540325,1779042652000,-1547.83,0.00011506,2]
[422540335,1779042652000,-500.0,0.00011506,2]
[422540341,1779042652000,-742.74,0.00011506,2]
[422540342,1779042652000,-500.0,0.00011506,2]
[422540338,1779042652000,-624.01,0.00011506,2]